bitfinex/quotes_BTCUSD_20260221
["timestamp","ask_amount","ask_price","bid_price","bid_amount"]
[1771673433357,0.07325148,68258.0,68249.0,0.07326016]
[1771673433563,0.07325296,68257.0,68249.0,0.07326016]
[1771673433919,0.07325148,68258.0,68249.0,0.07326016]
[1771673434329,0.07325148,68258.0,68251.0,0.07325897]
[1771673434534,0.07325148,68258.0,68250.0,0.07325998]
[1771673435062,0.07325262,68257.0,68250.0,0.07325998]
[1771673435755,0.00027688,68260.0,68251.0,0.07325839]
[1771673435950,0.0732505,68259.0,68251.0,0.07325839]
[1771673436079,0.0732519,68258.0,68251.0,0.07325894]
[1771673436302,0.0732519,68258.0,68250.0,0.0732597]
[1771673437444,0.07325276,68257.0,68250.0,0.0732597]
[1771673437957,0.07325179,68258.0,68250.0,0.0732597]
[1771673439066,0.0732529,68257.0,68250.0,0.0732597]
[1771673439302,0.07325148,68258.0,68250.0,0.0732597]
[1771673439523,0.0002,68257.0,68250.0,0.0732597]
[1771673446606,0.0002,68257.0,68250.0,0.0734797]
[1771673447577,0.0002,68257.0,68245.0,0.00022]
[1771673447751,0.07325572,68255.0,68247.0,0.07326306]
[1771673447889,0.09178405,68255.0,68247.0,0.07326306]
[1771673448101,0.02331054,68254.0,68247.0,0.07326306]
[1771673448450,0.09656678,68254.0,68246.0,0.07326374]
[1771673449151,0.07325775,68253.0,68245.0,0.00022]
[1771673449331,0.09656829,68253.0,68245.0,0.00022]
[1771673449533,0.01852833,68252.0,68243.0,0.00022]
[1771673449709,0.1150995,68250.0,68243.0,0.00022]
[1771673450357,0.02331054,68249.0,68239.0,0.07340681]
[1771673450536,0.02331054,68247.0,68239.0,0.07340681]
[1771673451309,0.02331054,68247.0,68241.0,0.07326942]
[1771673453231,0.02331054,68247.0,68239.0,0.0003553]
[1771673453585,0.04183887,68247.0,68239.0,0.0003553]
[1771673453731,0.04183887,68247.0,68240.0,0.07343063]
[1771673454145,0.04183887,68247.0,68241.0,0.07326966]
[1771673455758,0.04183887,68247.0,68240.0,0.07343064]
[1771673456002,0.04183887,68247.0,68240.0,0.00016]
[1771673457088,0.04183887,68247.0,68240.0,0.07343046]
[1771673457684,0.04183887,68247.0,68241.0,0.07326972]
[1771673458344,0.04183887,68247.0,68240.0,0.07342866]
[1771673458525,0.04183887,68247.0,68240.0,0.00016]
[1771673458750,0.04183887,68244.0,68237.0,0.07327323]
[1771673459354,0.04183887,68244.0,68236.0,0.00022]
[1771673459566,0.01852833,68244.0,68236.0,0.07349447]
[1771673459694,0.02331054,68243.0,68237.0,0.07327374]
[1771673460156,0.02331054,68243.0,68237.0,0.0001697]
[1771673460663,0.16508832,68247.0,68232.0,0.00022]
[1771673460851,0.07327198,68239.0,68232.0,0.00022]
[1771673461053,0.07327198,68239.0,68233.0,0.00022]
[1771673461802,0.07327198,68239.0,68228.0,0.00022]
[1771673461803,0.01852833,68237.0,68228.0,0.07350311]
[1771673462008,0.02331054,68236.0,68229.0,0.07374742]
[1771673462502,0.02331054,68236.0,68230.0,0.07328141]
[1771673463339,0.02331054,68236.0,68230.0,0.02850819]
[1771673463998,0.02331054,68236.0,68229.0,0.07374821]
[1771673464213,0.02331054,68236.0,68225.0,0.07350482]
[1771673464543,0.02331054,68235.0,68225.0,0.07350482]
[1771673464712,0.07327816,68234.0,68226.0,0.07350499]
[1771673465009,0.02331054,68232.0,68226.0,0.00022]
[1771673465214,0.02315108,68232.0,68226.0,0.0735058]
[1771673465618,0.07328168,68230.0,68222.0,0.07350979]
[1771673465859,0.02331054,68229.0,68223.0,0.07328903]
[1771673466211,0.02331054,68229.0,68222.0,0.07350996]
[1771673466423,0.02331054,68229.0,68223.0,0.07328889]
[1771673467023,0.02331054,68229.0,68223.0,0.07328883]
[1771673467236,0.02331054,68229.0,68222.0,0.07350804]
[1771673468114,0.02331054,68229.0,68223.0,0.07328898]
[1771673468279,0.02331054,68229.0,68220.0,0.0003089]
[1771673468280,0.02379808,68227.0,68220.0,0.0003089]
[1771673468493,0.02379808,68226.0,68219.0,0.04282774]
[1771673471491,0.00016,68230.0,68222.0,0.07328988]
[1771673471699,0.00016,68230.0,68220.0,0.07329228]
[1771673471902,0.00016,68230.0,68221.0,0.02]
[1771673472221,0.07344167,68230.0,68222.0,0.07328986]
[1771673472416,0.09675066,68230.0,68222.0,0.07328986]
[1771673474205,0.02330899,68228.0,68221.0,0.07329102]
[1771673475198,0.07328476,68227.0,68219.0,0.0732933]
[1771673476597,0.09659482,68228.0,68218.0,0.00022]
[1771673476598,0.07328604,68226.0,68218.0,0.00022]
[1771673476912,0.07328746,68225.0,68218.0,0.00022]
[1771673477120,0.07328746,68225.0,68218.0,0.07351425]
[1771673477121,0.02330899,68225.0,68218.0,0.07351425]
[1771673477554,0.09659594,68225.0,68218.0,0.07351425]
[1771673477891,0.09659594,68225.0,68218.0,0.00022]
[1771673477892,0.07328808,68224.0,68218.0,0.00022]
[1771673478074,0.02330899,68223.0,68218.0,0.00022]
[1771673478283,0.07329658,68216.0,68211.0,0.00022]
[1771673478486,0.02330899,68220.0,68211.0,0.00022]
[1771673478690,0.16508832,68221.0,68211.0,0.00022]
[1771673478691,0.07329657,68217.0,68211.0,0.00022]
[1771673478893,0.02330899,68216.0,68211.0,0.00022]
[1771673479564,0.02330899,68215.0,68211.0,0.00022]
[1771673479964,0.0732938,68219.0,68211.0,0.00022]
[1771673479965,0.0732938,68219.0,68211.0,0.07352182]
[1771673480162,0.09660279,68219.0,68211.0,0.07352182]
[1771673480731,0.09667697,68219.0,68211.0,0.07352182]
[1771673481468,0.02330899,68218.0,68211.0,0.07352182]
[1771673481651,0.02330899,68217.0,68211.0,0.00022]
[1771673482209,0.02330899,68217.0,68211.0,0.07352194]
[1771673482411,7.418e-05,68219.0,68212.0,0.02]
[1771673482561,7.418e-05,68219.0,68213.0,0.09329886]
[1771673482763,7.418e-05,68237.0,68211.0,0.02400709]
[1771673483009,0.07328792,68225.0,68217.0,0.01888765]
[1771673483720,0.07328853,68224.0,68217.0,0.01888765]
[1771673484503,0.07328792,68225.0,68217.0,0.01888765]
[1771673484857,0.07328799,68224.0,68217.0,0.01888765]
[1771673486178,0.07329123,68221.0,68213.0,0.07329928]
[1771673486331,0.07329123,68221.0,68211.0,0.01949688]
[1771673486758,0.07329123,68221.0,68212.0,0.07330088]
[1771673486927,0.02330899,68220.0,68212.0,0.07330088]
[1771673488147,0.09660159,68220.0,68212.0,0.07330088]
[1771673488625,0.07329456,68218.0,68211.0,0.00060923]
[1771673488967,0.09660355,68218.0,68211.0,0.00060923]
[1771673490958,0.02330899,68222.0,68211.0,0.00060923]
[1771673491176,0.16508832,68223.0,68210.0,0.00016]
[1771673491177,0.09660623,68216.0,68210.0,0.00016]
[1771673491377,0.09660623,68216.0,68210.0,0.0002767]
[1771673491578,0.02330899,68215.0,68210.0,0.0002767]
[1771673491796,0.02330899,68215.0,68207.0,0.07330536]
[1771673492001,0.02330899,68215.0,68207.0,0.07337954]
[1771673492175,0.09660688,68215.0,68207.0,0.07337954]
[1771673492391,0.07329789,68215.0,68207.0,0.07337954]
[1771673492590,0.09660688,68215.0,68207.0,0.07337954]
[1771673492817,0.02330899,68214.0,68207.0,0.07337954]
[1771673493027,0.02330899,68214.0,68208.0,0.07330516]
[1771673493387,0.07329724,68216.0,68208.0,0.07330516]
[1771673494528,0.07329724,68216.0,68211.0,0.00022]
[1771673494680,0.02330899,68215.0,68211.0,0.00022]
[1771673495288,0.16524832,68220.0,68214.0,0.07329853]
[1771673495486,0.00016,68220.0,68211.0,0.00022]
[1771673495946,0.00016,68220.0,68212.0,0.07330004]
[1771673496152,0.00016,68220.0,68213.0,0.07329958]
[1771673496462,0.00016,68220.0,68214.0,0.01888765]
[1771673497256,0.00016,68220.0,68214.0,0.09218625]
[1771673497450,0.07345233,68220.0,68214.0,0.01888765]
[1771673497663,0.07329367,68219.0,68212.0,0.07330076]
[1771673500244,0.07329463,68218.0,68211.0,0.0735213]
[1771673500489,0.07329557,68217.0,68211.0,0.00022]
[1771673500947,0.02277755,68214.0,68207.0,0.07338009]
[1771673501565,0.07329856,68215.0,68207.0,0.07338009]
[1771673503013,0.09607666,68214.0,68207.0,7.418e-05]
[1771673503225,0.09607666,68214.0,68207.0,0.07338043]
[1771673504030,0.09607666,68214.0,68207.0,7.418e-05]
[1771673504358,0.09607666,68214.0,68207.0,0.07338038]
[1771673504492,0.02277755,68214.0,68207.0,0.07338038]
[1771673505187,0.07329773,68215.0,68207.0,0.07338038]
[1771673507035,0.07329889,68214.0,68207.0,0.07338038]
[1771673507609,0.07329889,68214.0,68207.0,7.418e-05]
[1771673508150,0.07329804,68215.0,68207.0,7.418e-05]
[1771673508370,0.07329963,68214.0,68207.0,7.418e-05]
[1771673508797,0.07329963,68214.0,68207.0,0.00029418]
[1771673511109,0.02277755,68213.0,68207.0,0.00029418]
[1771673511456,0.07330197,68211.0,68207.0,0.00029418]
[1771673511675,0.07330384,68210.0,68207.0,0.00029418]
[1771673511873,0.02277755,68209.0,68207.0,0.00029418]
[1771673513738,0.07330384,68210.0,68207.0,0.00029418]
[1771673514350,0.07330219,68211.0,68207.0,0.00029418]
[1771673514527,0.09607501,68216.0,68208.0,0.07330443]
[1771673514727,0.07329799,68215.0,68207.0,0.09312592]
[1771673515084,0.07329884,68214.0,68207.0,0.01982038]
[1771673516305,0.07329884,68214.0,68207.0,0.00029418]
[1771673519957,0.07329981,68213.0,68207.0,0.00029418]
[1771673520142,0.07329884,68214.0,68207.0,0.00029418]
[1771673520503,0.07329548,68218.0,68210.0,0.0195262]
[1771673520639,0.07329551,68217.0,68210.0,0.0195262]
[1771673523527,0.07349551,68217.0,68210.0,0.0195262]
[1771673524472,0.07349551,68217.0,68209.0,0.07330332]
[1771673524672,0.07329669,68216.0,68209.0,0.07330332]
[1771673525040,0.07329854,68215.0,68207.0,0.07359964]
[1771673525566,0.0002,68217.0,68200.0,0.00038]
[1771673525759,0.07330603,68208.0,68200.0,0.07369286]
[1771673525998,0.07330603,68208.0,68200.0,0.09369286]
[1771673526198,0.09608157,68211.0,68201.0,0.0933127]
[1771673526398,0.07330491,68209.0,68201.0,0.0933127]
[1771673527664,0.07330491,68209.0,68202.0,0.02]
[1771673528363,0.07330504,68210.0,68202.0,0.09331131]
[1771673528563,0.07330504,68210.0,68203.0,0.02]
[1771673528882,0.02351597,68215.0,68203.0,0.09330973]
[1771673529077,0.02351597,68215.0,68203.0,0.02]
[1771673529078,0.07330319,68210.0,68203.0,0.02]
[1771673529447,0.07330422,68209.0,68203.0,0.02]
[1771673531017,0.07330319,68210.0,68203.0,0.02]
[1771673531213,0.07330428,68209.0,68203.0,0.02]
[1771673531421,0.07330518,68208.0,68202.0,0.00022]
[1771673534151,0.07330741,68206.0,68202.0,0.00022]
[1771673534333,0.09639293,68206.0,68202.0,0.00022]
[1771673534872,0.07330741,68206.0,68202.0,0.00022]
[1771673535055,0.02308552,68205.0,68202.0,0.00022]
[1771673535503,0.0733127,68201.0,68200.0,0.00038]
[1771673535797,0.02308552,68205.0,68200.0,0.00038]
[1771673536465,0.07331199,68202.0,68200.0,0.00038]
[1771673536667,0.09639751,68202.0,68200.0,0.00038]
[1771673537537,0.02308552,68201.0,68200.0,0.00038]
[1771673538260,0.02308552,68201.0,68198.0,0.00022]
[1771673538668,0.073312,68202.0,68198.0,0.00022]
[1771673539062,0.02308552,68201.0,68198.0,0.00022]
[1771673540019,0.073312,68202.0,68198.0,0.00022]
[1771673542002,0.07330726,68207.0,68198.0,0.09353505]
[1771673542208,0.073308,68206.0,68198.0,0.09353505]
[1771673542409,0.07330726,68207.0,68198.0,0.09353505]
[1771673542754,0.07331059,68203.0,68198.0,0.02022]
[1771673543441,0.07331187,68202.0,68198.0,0.00022]
[1771673545831,0.07331059,68203.0,68198.0,0.00022]
[1771673546232,0.07331174,68202.0,68198.0,0.00022]
[1771673546661,0.07331174,68202.0,68199.0,0.02]
[1771673547834,0.07331174,68202.0,68198.0,0.00022]
[1771673548348,0.07331284,68201.0,68198.0,0.00022]
[1771673548516,0.07331667,68198.0,68195.0,0.00022]
[1771673548719,0.07331667,68198.0,68195.0,0.00028859]
[1771673550685,0.02308552,68199.0,68195.0,0.00028859]
[1771673550882,0.07331521,68199.0,68195.0,0.00028859]
[1771673551130,0.02308552,68198.0,68195.0,0.00028859]
[1771673551721,0.07331521,68199.0,68195.0,0.00028859]
[1771673552141,0.02308552,68199.0,68195.0,0.00028859]
[1771673553608,0.02308552,68201.0,68195.0,0.00028859]
[1771673553763,0.02308552,68197.0,68193.0,0.00022]
[1771673553975,0.07331743,68197.0,68193.0,0.00022]
[1771673554177,0.02308552,68196.0,68193.0,0.00022]
[1771673554575,0.0733163,68198.0,68193.0,0.00022]
[1771673554785,0.07331708,68197.0,68193.0,0.00022]
[1771673554987,0.09640174,68198.0,68193.0,0.00022]
[1771673555197,0.02308552,68197.0,68193.0,0.00022]
[1771673556372,0.02315408,68197.0,68193.0,0.00022]
[1771673557678,0.073319,68196.0,68193.0,0.00022]
[1771673557877,0.09659818,68196.0,68193.0,0.00022]
[1771673558203,0.02327918,68196.0,68193.0,0.00022]
[1771673558614,0.07332181,68193.0,68188.0,0.00022]
[1771673558822,6.856e-05,68197.0,68180.0,0.00016]
[1771673558823,0.29329813,68190.0,68180.0,0.00016]
[1771673558993,0.02327918,68186.0,68180.0,0.00016]
[1771673559635,0.02327918,68196.0,68185.0,0.07332914]
[1771673559838,0.08702819,68195.0,68186.0,0.07332816]
[1771673560138,0.0733213,68193.0,68185.0,0.02]
[1771673560342,0.07332525,68190.0,68181.0,0.07333383]
[1771673560579,0.01370819,68189.0,68183.0,0.00022]
[1771673560803,0.01370819,68188.0,68183.0,0.00022]
[1771673560985,0.07332444,68192.0,68184.0,0.0933309]
[1771673561345,0.07332444,68192.0,68184.0,0.0935509]
[1771673561682,0.07332359,68191.0,68184.0,0.02022]
[1771673561987,0.07332444,68192.0,68184.0,0.09355089]
[1771673562679,0.07332356,68191.0,68184.0,0.02022]
[1771673562871,0.02327918,68196.0,68184.0,0.02022]
[1771673563076,0.17618856,68197.0,68185.0,0.01941759]
[1771673563250,0.07331819,68196.0,68185.0,0.01941759]
[1771673563455,0.07331819,68196.0,68188.0,0.0733259]
[1771673563872,0.07331819,68196.0,68189.0,0.00022]
[1771673564082,0.07332001,68195.0,68189.0,0.00022]
[1771673565204,0.0733183,68196.0,68189.0,0.00022]
[1771673566358,0.02327918,68193.0,68185.0,0.07332896]
[1771673566816,0.00026856,68197.0,68184.0,0.07354991]
[1771673566965,0.00026856,68197.0,68189.0,0.07332467]
[1771673567166,0.00026856,68197.0,68190.0,0.02]
[1771673568776,0.07358628,68197.0,68190.0,0.02]
[1771673568969,0.07331827,68196.0,68190.0,0.02]
[1771673569303,0.07331827,68196.0,68188.0,0.07332453]
[1771673569570,0.07332095,68194.0,68189.0,0.12761659]
[1771673569760,0.02327918,68196.0,68186.0,0.12761659]
[1771673570049,0.02327918,68193.0,68184.0,0.07355023]
[1771673570349,0.02327918,68193.0,68185.0,0.12761659]
[1771673570556,0.07332308,68192.0,68184.0,0.07355023]
[1771673570852,0.07332308,68192.0,68185.0,0.12761659]
[1771673571256,0.07332308,68192.0,68186.0,0.00022]
[1771673571767,0.09660341,68191.0,68186.0,0.00022]
[1771673572064,0.02327918,68190.0,68186.0,0.00022]
[1771673572240,0.09660405,68190.0,68186.0,0.00022]
[1771673572417,0.07332365,68191.0,68186.0,0.00022]
[1771673572616,0.02327918,68190.0,68186.0,0.00022]
[1771673573645,0.01370492,68189.0,68186.0,0.00022]
[1771673573848,0.02327918,68190.0,68186.0,0.00022]
[1771673574052,0.01370489,68189.0,68186.0,0.00022]
[1771673574248,0.02327918,68190.0,68186.0,0.00022]
[1771673574448,0.01370523,68189.0,68186.0,0.00022]
[1771673574845,0.03698441,68189.0,68186.0,0.00022]
[1771673575043,0.01370523,68188.0,68186.0,0.00022]
[1771673575402,0.02327918,68189.0,68186.0,0.00022]
[1771673575682,0.01370579,68188.0,68186.0,0.00022]
[1771673575856,0.02327918,68189.0,68186.0,0.00022]
[1771673577501,0.02327918,68189.0,68184.0,0.00022]
[1771673577809,0.07332784,68187.0,68185.0,0.12761659]
[1771673578006,0.09660617,68188.0,68186.0,0.00022]
[1771673578512,0.07332776,68187.0,68186.0,0.00022]
[1771673578726,0.02327918,68186.0,68184.0,0.00022]
[1771673579480,0.07332859,68187.0,68184.0,0.00022]
[1771673579674,0.07332859,68187.0,68180.0,0.00016]
[1771673579945,0.07332859,68187.0,68181.0,0.12761659]
[1771673580707,0.07332877,68188.0,68181.0,0.12761659]
[1771673580907,0.01371049,68187.0,68181.0,0.12761659]
[1771673581108,0.07332877,68188.0,68181.0,0.12761659]
[1771673581305,0.0137106,68187.0,68181.0,0.12761659]
[1771673581510,0.01371115,68186.0,68180.0,0.00016]
[1771673581713,0.07333399,68182.0,68180.0,0.00016]
[1771673582657,0.0733329,68183.0,68180.0,0.00016]
[1771673582845,0.01371042,68182.0,68180.0,0.00016]
[1771673583034,0.07333313,68182.0,68180.0,0.00016]
[1771673584043,0.07333313,68182.0,68179.0,0.00022]
[1771673585606,0.07333313,68182.0,68181.0,0.00022]
[1771673585807,0.11032352,68182.0,68181.0,0.00022]
[1771673585962,0.11032352,68182.0,68179.0,0.00022]
[1771673586165,0.09661231,68182.0,68179.0,0.00022]
[1771673586395,0.01371219,68181.0,68179.0,0.00022]
[1771673586745,0.09661231,68182.0,68179.0,0.00022]
[1771673586891,0.01371219,68181.0,68179.0,0.00022]
[1771673587057,0.07333313,68182.0,68179.0,0.00022]
[1771673587258,0.01371219,68181.0,68179.0,0.00022]
[1771673587509,0.07333313,68182.0,68179.0,0.00022]
[1771673587718,0.01371348,68181.0,68179.0,0.00022]
[1771673587866,0.07333313,68182.0,68179.0,0.00022]
[1771673588063,0.01371348,68181.0,68179.0,0.00022]
[1771673588271,0.07333233,68183.0,68179.0,0.00022]
[1771673588632,0.01371417,68182.0,68179.0,0.00022]
[1771673588819,0.01371417,68181.0,68179.0,0.00022]
[1771673588969,0.07333233,68183.0,68179.0,0.00022]
[1771673589171,0.01371417,68182.0,68179.0,0.00022]
[1771673589371,0.01371417,68181.0,68178.0,0.0001458]
[1771673589601,0.07333233,68183.0,68178.0,0.0001458]
[1771673589802,0.01371329,68182.0,68178.0,0.0001458]
[1771673590021,0.01371329,68181.0,68178.0,0.0001458]
[1771673590224,0.07333233,68183.0,68178.0,0.0001458]
[1771673590428,0.0137128,68182.0,68178.0,0.0001458]
[1771673590674,0.0137128,68181.0,68178.0,0.0001458]
[1771673590851,0.07333319,68182.0,68178.0,0.0001458]
[1771673591076,0.0137124,68181.0,68178.0,0.0001458]
[1771673591233,0.07333319,68182.0,68175.0,0.07334037]
[1771673591432,0.01371161,68181.0,68175.0,0.07334037]
[1771673591636,0.07333319,68182.0,68175.0,0.07334037]
[1771673591835,0.01371161,68181.0,68175.0,0.07334037]
[1771673592197,0.07333234,68183.0,68175.0,0.07334037]
[1771673592382,0.01371131,68182.0,68175.0,0.07334037]
[1771673592569,0.01371131,68181.0,68179.0,0.00022]
[1771673592725,0.07333234,68183.0,68175.0,0.07334037]
[1771673592932,0.0137109,68182.0,68175.0,0.07334037]
[1771673593135,0.0137109,68181.0,68175.0,0.07334037]
[1771673593361,0.07333234,68183.0,68175.0,0.07334037]
[1771673593588,0.01371069,68182.0,68175.0,0.07334037]
[1771673593813,0.01371069,68181.0,68175.0,0.07334037]
[1771673593949,0.07333344,68182.0,68175.0,0.07334037]
[1771673594155,0.01371065,68181.0,68175.0,0.07334037]
[1771673594354,0.07333344,68182.0,68175.0,0.07334037]
[1771673594579,0.01371059,68181.0,68175.0,0.07334037]
[1771673594778,0.07333344,68182.0,68175.0,0.07334037]
[1771673594981,0.0137106,68181.0,68175.0,0.07334037]
[1771673595182,0.07333344,68182.0,68175.0,0.07334037]
[1771673595385,0.01371051,68181.0,68175.0,0.07334037]
[1771673595540,0.0733313,68184.0,68174.0,0.09726435]
[1771673595872,0.07333215,68183.0,68176.0,0.0733395]
[1771673596069,0.02475876,68189.0,68174.0,0.09726594]
[1771673596289,0.0733335,68182.0,68175.0,0.07334065]
[1771673597019,0.07333228,68183.0,68175.0,0.07334065]
[1771673599955,0.0002,68182.0,68175.0,0.07334065]
[1771673601109,0.07333452,68181.0,68174.0,0.09726601]
[1771673604099,0.02475876,68189.0,68174.0,0.09726601]
[1771673604100,0.07348526,68190.0,68174.0,0.00022]
[1771673604317,0.07332714,68188.0,68180.0,0.07333485]
[1771673605307,0.07332714,68188.0,68181.0,0.07333418]
[1771673607560,0.01372264,68187.0,68181.0,0.07333418]
[1771673607761,0.01372264,68186.0,68181.0,0.07333418]
[1771673607966,0.01372264,68185.0,68181.0,0.07333418]
[1771673608283,0.0002,68182.0,68181.0,0.07333418]
[1771673609004,0.0002,68182.0,68180.0,0.07333497]
[1771673610238,0.07332717,68188.0,68180.0,0.07333497]
[1771673610437,0.07332717,68188.0,68179.0,0.07333426]
[1771673610438,0.07332582,68189.0,68181.0,0.09703881]
[1771673610621,0.07332682,68188.0,68181.0,0.02370464]
[1771673610821,0.07332832,68187.0,68179.0,0.07333611]
[1771673612316,0.07332832,68187.0,68179.0,0.07319101]
[1771673612534,0.07332682,68188.0,68180.0,0.07333497]
[1771673612738,0.01999787,68186.0,68179.0,0.07333625]
[1771673612943,0.04475663,68186.0,68179.0,0.07333625]
[1771673613567,0.02475876,68186.0,68179.0,0.07333625]
[1771673613780,0.0733278,68187.0,68179.0,0.07333625]
[1771673614684,0.07333314,68182.0,68174.0,0.07356116]
[1771673614876,0.07333314,68182.0,68174.0,0.00022]
[1771673615217,0.07333314,68182.0,68175.0,0.00022]
[1771673616135,0.02475876,68185.0,68175.0,0.00022]
[1771673616338,0.07333111,68184.0,68176.0,0.07333959]
[1771673616577,0.07333111,68184.0,68177.0,0.07333838]
[1771673619170,0.0002,68187.0,68180.0,0.07333501]
[1771673619393,0.0002,68187.0,68181.0,0.07333367]
[1771673619580,0.0002,68187.0,68180.0,0.07333501]
[1771673619787,0.0002,68187.0,68175.0,0.00022]
[1771673619988,0.07333225,68183.0,68176.0,0.07333858]
[1771673620312,0.0137274,68182.0,68177.0,0.07333845]
[1771673620437,0.0733312,68184.0,68175.0,0.0735597]
[1771673620646,0.01372739,68183.0,68175.0,0.0735597]
[1771673620842,0.01372739,68182.0,68176.0,0.07333932]
[1771673621098,0.0733312,68184.0,68176.0,0.07333932]
[1771673621262,0.0733312,68184.0,68174.0,0.0735597]
[1771673621263,0.04194702,68181.0,68174.0,0.00022]
[1771673621461,0.11528368,68179.0,68174.0,0.00022]
[1771673621898,0.07333748,68178.0,68174.0,0.00022]
[1771673622094,0.11528368,68179.0,68174.0,0.00022]
[1771673622667,0.09616714,68179.0,68174.0,0.00022]
[1771673624585,0.07333666,68179.0,68174.0,0.00022]
[1771673624785,0.01911654,68178.0,68172.0,0.0004114]
[1771673624988,0.07333666,68179.0,68172.0,0.0004114]
[1771673625194,0.0002,68182.0,68172.0,0.02418688]
[1771673625386,0.01372453,68181.0,68172.0,0.0240418]
[1771673625586,0.01372453,68180.0,68172.0,0.0240418]
[1771673625814,0.07353396,68182.0,68173.0,0.07334198]
[1771673625991,0.01372329,68181.0,68173.0,0.07334198]
[1771673626209,0.01372329,68180.0,68173.0,0.07334198]
[1771673626382,0.07333424,68181.0,68173.0,0.07334198]
[1771673626584,0.01372244,68180.0,68173.0,0.07334198]
[1771673626807,0.07333424,68181.0,68173.0,0.07334198]
[1771673627000,0.01372242,68180.0,68173.0,0.07334198]
[1771673627205,0.07333424,68181.0,68173.0,0.07334198]
[1771673627407,0.01372176,68180.0,68173.0,0.07334198]
[1771673627605,0.07333424,68181.0,68173.0,0.07334198]
[1771673627825,0.01372033,68180.0,68173.0,0.07334198]
[1771673628024,0.07333424,68181.0,68173.0,0.07334198]
[1771673628250,0.00348664,68179.0,68173.0,0.07334198]
[1771673629607,0.00348664,68179.0,68174.0,0.07334162]
[1771673629807,0.00348664,68179.0,68172.0,0.073463]
[1771673630232,0.46943903,68195.0,68173.0,0.02392056]
[1771673630433,0.07333001,68185.0,68178.0,0.07333669]
[1771673630649,0.01371875,68184.0,68177.0,0.07333813]
[1771673630895,0.01371875,68184.0,68176.0,0.09725943]
[1771673631042,0.0733318,68184.0,68175.0,0.07334046]
[1771673631242,0.07353321,68182.0,68175.0,0.07334046]
[1771673632939,0.07333428,68181.0,68173.0,0.07356199]
[1771673633143,0.0733354,68180.0,68173.0,0.07356199]
[1771673633388,0.0733354,68180.0,68173.0,0.00022]
[1771673633726,0.29332155,68185.0,68173.0,0.00022]
[1771673633893,0.00016,68190.0,68182.0,0.02392056]
[1771673634053,0.00016,68190.0,68186.0,0.02392056]
[1771673634593,0.00016,68190.0,68185.0,0.07332914]
[1771673635226,0.00016,68190.0,68184.0,0.07332885]
[1771673635368,0.00016,68190.0,68185.0,0.07332985]
[1771673635708,0.02,68184.0,68176.0,0.07333858]
[1771673635849,0.09333121,68184.0,68176.0,0.07333858]
[1771673636054,0.02,68184.0,68177.0,0.07333845]
[1771673636906,0.07333067,68186.0,68178.0,0.07333717]
[1771673637098,0.07332723,68188.0,68178.0,0.07333717]
[1771673637397,0.07332723,68188.0,68179.0,0.07333587]
[1771673637398,0.07332793,68187.0,68179.0,0.07333587]
[1771673637554,0.07332778,68187.0,68180.0,0.07333498]
[1771673637997,0.07332778,68187.0,68179.0,0.07333612]
[1771673638403,0.07332778,68187.0,68180.0,0.07333528]
[1771673638600,0.02,68189.0,68182.0,0.07333243]
[1771673638803,0.02,68189.0,68183.0,0.07333191]
[1771673639022,0.02,68189.0,68182.0,0.07318736]
[1771673639326,0.09332963,68186.0,68177.0,0.02392056]
[1771673639524,0.09332963,68186.0,68177.0,0.0733378]
[1771673640429,0.07333007,68185.0,68177.0,0.0733378]
[1771673640836,0.07332975,68186.0,68176.0,0.0733378]
[1771673640987,0.07333068,68185.0,68176.0,0.0733378]
[1771673641562,0.07333068,68185.0,68177.0,0.07333754]
[1771673642308,0.0002,68187.0,68181.0,0.073334]
[1771673642520,0.01371356,68186.0,68181.0,0.07333321]
[1771673642826,0.0002,68187.0,68181.0,0.07333321]
[1771673643031,0.01371357,68186.0,68173.0,0.00022]
[1771673643362,0.07333383,68182.0,68174.0,0.07334157]
[1771673643576,0.0002,68187.0,68178.0,0.07333643]
[1771673643577,0.07332905,68186.0,68178.0,0.07333643]
[1771673645438,0.0002,68187.0,68181.0,0.07333344]
[1771673646279,0.0002,68186.0,68181.0,0.07333344]
[1771673646506,0.0002,68186.0,68181.0,0.02392056]
[1771673647074,0.01911654,68182.0,68173.0,0.07356211]
[1771673647274,0.07333439,68181.0,68173.0,0.00022]
[1771673648294,0.01911654,68182.0,68173.0,0.00022]
[1771673648977,0.07333496,68181.0,68173.0,0.07356256]
[1771673649137,0.09273884,68181.0,68173.0,0.07356256]
[1771673649747,0.01962833,68180.0,68173.0,0.07356256]
[1771673649979,0.09296364,68180.0,68173.0,0.07356256]
[1771673650447,0.07333531,68180.0,68173.0,0.00022]
[1771673650667,0.09296471,68179.0,68173.0,0.00022]
[1771673651030,0.01962833,68179.0,68173.0,0.00022]
[1771673651232,0.07333812,68178.0,68173.0,0.00022]
[1771673651454,0.01962833,68177.0,68173.0,0.00022]
[1771673653327,0.07333666,68179.0,68173.0,0.00022]
[1771673653457,0.07333549,68180.0,68173.0,0.00022]
[1771673654703,0.07333507,68181.0,68174.0,0.07334163]
[1771673654896,0.07333507,68181.0,68173.0,0.07356244]
[1771673655101,0.07333546,68180.0,68173.0,0.00022]
[1771673655706,0.29332249,68185.0,68173.0,0.00022]
[1771673655707,0.01962833,68185.0,68173.0,0.00022]
[1771673655865,0.09295877,68185.0,68175.0,0.07334066]
[1771673656067,0.07333291,68183.0,68175.0,0.07334066]
[1771673656905,0.09295877,68185.0,68176.0,0.07333922]
[1771673657120,0.07333098,68184.0,68177.0,0.07333842]
[1771673658219,0.07333098,68184.0,68176.0,0.07333922]
[1771673658517,0.07352942,68186.0,68176.0,0.07333922]
[1771673658518,0.0733323,68183.0,68176.0,0.07333922]
[1771673658867,0.0733323,68183.0,68175.0,0.07334027]
[1771673659713,0.07333342,68182.0,68174.0,0.0968623]
[1771673659933,0.07333342,68182.0,68175.0,0.00022]
[1771673661187,0.07333313,68182.0,68175.0,0.00022]
[1771673661383,0.01962833,68181.0,68175.0,0.00022]
[1771673663134,0.0733323,68183.0,68175.0,0.07356064]
[1771673663481,0.07333314,68182.0,68175.0,0.00022]
[1771673666183,0.46967665,68186.0,68175.0,0.00022]
[1771673666184,0.17636,68186.0,68175.0,0.00022]
[1771673666400,0.07333137,68184.0,68176.0,0.09685968]
[1771673666605,0.01372217,68183.0,68176.0,0.09685968]
[1771673666804,0.01372217,68183.0,68177.0,0.0733384]
[1771673667704,0.08705444,68183.0,68175.0,0.07356049]
[1771673667885,0.07333227,68183.0,68175.0,0.07356049]
[1771673669393,0.07333333,68182.0,68175.0,0.00022]
[1771673670653,0.01962833,68181.0,68175.0,0.00022]
[1771673673030,0.01962833,68181.0,68174.0,0.07333963]
[1771673673234,0.04331259,68181.0,68174.0,0.07333963]
[1771673673430,0.04331259,68181.0,68175.0,0.00022]
[1771673673632,0.02368426,68181.0,68175.0,0.00022]